Name,Sub Group,Service Area,Expense Type,Narrative,Date,Transaction No,Amount,Supplier Name,Supplier ID,Period,Year
Allerdale Borough Council,AD01,Employee related expenditure,ES - Public Convenience Cleaning,Agency Staff Costs,06/02/2013,472014,172.38,COCKERMOUTH TOWN COUNCIL      ,A00586,11,2012
Allerdale Borough Council,BA01,Premises related expenditure,Corporate Property,External Maintenance & Decoration,06/02/2013,472015,980,Redacted information - included personal information ,C00008,11,2012
Allerdale Borough Council,DA01,Supplies and Services,Homelessness,Equipment Costs,13/02/2013,472016,158.61,ARCO LIMITED                  ,A01448,11,2012
Allerdale Borough Council,EA04,Third Party Payments,Recycling,Horticulture,06/02/2013,472017,128,THOMPSONS PLANT HIRE LTD      ,A00262,11,2012
Allerdale Borough Council,BA03,Premises related expenditure,Parks Development,Grounds,20/02/2013,472018,"5,215.50",WICKSTEED LEISURE LIMITED     ,A01115,11,2012
Allerdale Borough Council,DJ03,Supplies and Services,Customer Contact Centre - Pay Groups,Security of Cash Movements,27/02/2013,472019,956.41,SECURITY PLUS LIMITED         ,A00503,11,2012
Allerdale Borough Council,DE10,Supplies and Services, ,Disposal of Waste,20/02/2013,472020,117,P&W CONFIDENTIAL BUSINESS SERV,A01498,11,2012
Allerdale Borough Council,DE01,Supplies and Services,LDF Project Slip,Consultants Fees,20/02/2013,472021,"3,250.00",WYG ENGINEERING LTD           ,A01075,11,2012
Allerdale Borough Council,DK99,Supplies and Services, ,Promotions General,06/02/2013,472022,40,JIM DAVIS PHOTOGRAPHY         ,A00627,11,2012
Allerdale Borough Council,BA01,Premises related expenditure,Corporate Property,External Maintenance & Decoration,20/02/2013,472023,175,W G MACKAY LTD         ,A01711,11,2012
Allerdale Borough Council,CA04,Transport related expenditure,Pest Control,Repairs & Maintenance ,06/02/2013,472024,97.18,HI-Q TYRESERVICES             ,A00313,11,2012
Allerdale Borough Council,CA04,Transport related expenditure,Domestic Waste,Repairs & Maintenance ,06/02/2013,472025,12,HI-Q TYRESERVICES             ,A00313,11,2012
Allerdale Borough Council,DH02,Supplies and Services,Shared IT,Hardware Maintenance,20/02/2013,472026,221.94,DATATRADE LTD                 ,A01410,11,2012
Allerdale Borough Council,DG99,Supplies and Services,Shared IT,Other Telecommunications Costs,13/02/2013,472027,222.65,SIEMENS FINANCIAL SERVICES    ,A01307,11,2012
Allerdale Borough Council,DI03,Supplies and Services,Members Services,"Courses, Training, Seminars",06/02/2013,472028,250,CLES ONLINE                   ,A01600,11,2012
Allerdale Borough Council,QC01,Capital Expenditure,Keswick Museum Enhancement Project,External Contractor Payments,06/02/2013,472029,665,BOX CLEVER STORAGE            ,A00880,11,2012
Allerdale Borough Council,BA01,Premises related expenditure,Car Parks - Inspection and Maintenance,External Maintenance & Decoration,06/02/2013,472030,375,BINGHAM YATES & PARTNERS      ,A00003,11,2012
Allerdale Borough Council,DK99,Supplies and Services,AONB Silloth,Promotions General,27/02/2013,472031,63.96,NICHOLSON & COULTHARD LTD     ,A01544,11,2012
Allerdale Borough Council,DH08,Supplies and Services,Shared IT,Computer Consumables,20/02/2013,472032,58.65,MISCO                         ,A00125,11,2012
Allerdale Borough Council,BA01,Premises related expenditure,Corporate Property,External Maintenance & Decoration,06/02/2013,472033,137,Redacted information - included personal information ,C00008,11,2012
Allerdale Borough Council,XC02,Holding and Control Accounts,Capital Project Retentions,Holding Accounts General - Expenditure,06/02/2013,472034,0,THOMAS ARMSTRONG - CONST      ,C00003,11,2012
Allerdale Borough Council,DD02,Supplies and Services,Customer Contact Centre - Pay Groups,Photocopier Charges,20/02/2013,472035,37.64,RICOH UK LTD                  ,A00037,11,2012
Allerdale Borough Council,BC05,Premises related expenditure,Corporate Property,Inspections and Services,27/02/2013,472036,16.68,PHS GROUP LTD                 ,C00028,11,2012
Allerdale Borough Council,DA01,Supplies and Services,ES - Public Convenience Cleaning,Equipment Costs,06/02/2013,472037,309.72,INSTOCK (CHANDLERS)           ,A00050,11,2012
Allerdale Borough Council,DA01,Supplies and Services,Leisure - Carnegie Theatre,Equipment Costs,06/02/2013,472038,29.4,MICO LIGHTING LTD             ,A00200,11,2012
Allerdale Borough Council,DK99,Supplies and Services, ,Promotions General,06/02/2013,472039,75,JIM DAVIS PHOTOGRAPHY         ,A00627,11,2012
Allerdale Borough Council,BD05,Premises related expenditure,Homelessness,Rentals and Lease Charges,06/02/2013,472040,341.28,ANDREW COID T/A MAGPIE SERVICE,A00261,11,2012
Allerdale Borough Council,AD01,Employee related expenditure,Environmental Services - Pay Groups,Agency Staff Costs,06/02/2013,472041,188,Redacted information - included personal information ,A00176,11,2012
Allerdale Borough Council,DA01,Supplies and Services,Environmental Services - Pay Groups,Equipment Costs,20/02/2013,472042,113.1,RICOH UK LTD                  ,A00037,11,2012
Allerdale Borough Council,DG03,Supplies and Services,Shared IT,Call Charges,20/02/2013,472044,461.21,CABLE & WIRELESS              ,A00934,11,2012
Allerdale Borough Council,DH04,Supplies and Services,Shared IT,Computer Data Lines B.T.,20/02/2013,472045,11.95,CABLE & WIRELESS              ,A00934,11,2012
Allerdale Borough Council,BC02,Premises related expenditure,Homelessness,Cleaning,06/02/2013,472046,43.5,THE LAUNDRY STUDIO            ,A00225,11,2012
Allerdale Borough Council,DE06,Supplies and Services,Ombudsman Costs,Professional Services,20/02/2013,472047,"2,289.66",EVERSHEDS LLP                 ,A01516,11,2012
Allerdale Borough Council,EA04,Third Party Payments,Recycling,Horticulture,06/02/2013,472048,442.32,FCC RECYCLING (UK) LTD (ALCO) ,A00185,11,2012
Allerdale Borough Council,EA04,Third Party Payments,Recycling,Horticulture,06/02/2013,472049,449.16,FCC RECYCLING (UK) LTD (ALCO) ,A00185,11,2012
Allerdale Borough Council,BA01,Premises related expenditure,Corporate Property,External Maintenance & Decoration,06/02/2013,472050,502.04,THOMAS ARMSTRONG - CONST      ,C00003,11,2012
Allerdale Borough Council,DA01,Supplies and Services,ES - Public Convenience Cleaning,Equipment Costs,06/02/2013,472051,50.4,W F CLEANING SERVICES LTD     ,C00013,11,2012
Allerdale Borough Council,BC08,Premises related expenditure,Homelessness,Domestic Consummables,06/02/2013,472052,38,ARMSTRONGS - LINDEN/KAYTOOLS  ,A00091,11,2012
Allerdale Borough Council,CA04,Transport related expenditure,ES - Public Convenience Cleaning,Repairs & Maintenance ,06/02/2013,472053,50.5,FCC ENVIRONMENT SERV (FOCSA)  ,A00085,11,2012
Allerdale Borough Council,AF01,Employee related expenditure,Organisational Improvement Plan,External Courses & Seminar Fees,13/02/2013,472054,"1,600.00",LEACH CONSULTING & ASSOCIATES ,A01444,11,2012
Allerdale Borough Council,DA01,Supplies and Services,Trade Waste,Equipment Costs,27/02/2013,472055,"1,360.35",EGBERT H TAYLOR & COMP,A01706,11,2012
Allerdale Borough Council,DH13,Supplies and Services,Shared IT,Software Miscellaneous ,20/02/2013,472056,149,GENIUS INTERNET SECURITY      ,A01595,11,2012
Allerdale Borough Council,DE01,Supplies and Services,Senior Management/PA - Pay Groups,Consultants Fees,20/02/2013,472057,"2,000.00",BADENOCH & CLARK              ,A01355,11,2012
Allerdale Borough Council,DE01,Supplies and Services,Senior Management/PA - Pay Groups,Consultants Fees,27/02/2013,472058,"2,000.00",BADENOCH & CLARK              ,A01355,11,2012
Allerdale Borough Council,DE01,Supplies and Services,Food and Occupational Health,Consultants Fees,06/02/2013,472059,472.25,CAPITA TRANSLATION&INTE,A01749,11,2012
Allerdale Borough Council,EA04,Third Party Payments,Recycling,Horticulture,06/02/2013,472060,55.5,THOMPSONS PLANT HIRE LTD      ,A00262,11,2012
Allerdale Borough Council,BB03,Premises related expenditure,Corporate Property,Plumbing and Heating Maintenance,06/02/2013,472061,449.71,O'CONNELL & BEAN(MECH&ELEC)LTD,C00078,11,2012
Allerdale Borough Council,DE08,Supplies and Services,Economic Regeneration,Subscriptions,06/02/2013,472062,300,BRIT ENERGY COAST BUSI CLUSTER,A01648,11,2012
Allerdale Borough Council,DE05,Supplies and Services,Legal Services - Pay Groups,Licences,04/03/2013,472063,436,HSBC CARD SERVICES            ,X00000,11,2012
Allerdale Borough Council,DE06,Supplies and Services,Legal Services - Pay Groups,Professional Services,06/02/2013,472064,102.6,BURNETTS SOLICITORS           ,A00129,11,2012
Allerdale Borough Council,DA01,Supplies and Services,Domestic Waste,Equipment Costs,27/02/2013,472065,"4,584.00",CRAEMER UK LTD                ,A01016,11,2012
Allerdale Borough Council,QC01,Capital Expenditure,Keswick Museum Enhancement Project,External Contractor Payments,06/02/2013,472066,"5,000.00",FITZ PARK TRUST        ,A01741,11,2012
Allerdale Borough Council,DH04,Supplies and Services,Shared IT,Computer Data Lines B.T.,20/02/2013,472067,48.47,CABLE & WIRELESS              ,A00934,11,2012
Allerdale Borough Council,DH04,Supplies and Services,Shared IT,Computer Data Lines B.T.,20/02/2013,472068,22.97,CABLE & WIRELESS              ,A00934,11,2012
Allerdale Borough Council,DH04,Supplies and Services,Shared IT,Computer Data Lines B.T.,20/02/2013,472069,31.85,CABLE & WIRELESS              ,A00934,11,2012
Allerdale Borough Council,DG03,Supplies and Services,Shared IT,Call Charges,20/02/2013,472070,"1,058.74",CABLE & WIRELESS              ,A00934,11,2012
Allerdale Borough Council,DA02,Supplies and Services,Offstreet - Owned,Equipment Repair & Maintenance,06/02/2013,472071,95.17,METRIC GROUP LTD              ,A00568,11,2012
Allerdale Borough Council,DA01,Supplies and Services,Health and Safety,Equipment Costs,20/02/2013,472072,43.03,POSTURITE (UK) LTD            ,A00336,11,2012
Allerdale Borough Council,DA01,Supplies and Services,Health and Safety,Equipment Costs,20/02/2013,472073,9.98,ARCO LIMITED                  ,A01448,11,2012
Allerdale Borough Council,AD01,Employee related expenditure,Environmental Services - Pay Groups,Agency Staff Costs,06/02/2013,472074,290.25,Redacted information - included personal information ,A00176,11,2012
Allerdale Borough Council,BA01,Premises related expenditure,Corporate Property,External Maintenance & Decoration,06/02/2013,472075,320.17,WORKINGTON HERITAGE GROUP LTD ,A00339,11,2012
Allerdale Borough Council,BA01,Premises related expenditure,Corporate Property,External Maintenance & Decoration,06/02/2013,472076,168.29,WORKINGTON HERITAGE GROUP LTD ,A00339,11,2012
Allerdale Borough Council,BC02,Premises related expenditure,Homelessness,Cleaning,06/02/2013,472077,40,THE LAUNDRY STUDIO            ,A00225,11,2012
Allerdale Borough Council,BC02,Premises related expenditure,Homelessness,Cleaning,06/02/2013,472078,290,THE LAUNDRY STUDIO            ,A00225,11,2012
Allerdale Borough Council,QC01,Capital Expenditure,Keswick Museum Enhancement Project,External Contractor Payments,27/02/2013,472079,"5,504.00",MOSEDALE GILLATT              ,A01020,11,2012
Allerdale Borough Council,XC02,Holding and Control Accounts,Allerdale House Tea Fund,Holding Accounts General - Expenditure,04/03/2013,472080,156.07,BOOKER CASH AND CARRY         ,A01419,11,2012
Allerdale Borough Council,DB02,Supplies and Services,Leisure - Carnegie Theatre,Bar Provision,04/03/2013,472081,41.9,BOOKER CASH AND CARRY         ,A01419,11,2012
Allerdale Borough Council,BD08,Premises related expenditure,Corporate Property,Water & Sewage,06/02/2013,472082,"1,327.87",UNITED UTILITIES ,X00011,11,2012
Allerdale Borough Council,BD08,Premises related expenditure,Corporate Property,Water & Sewage,06/02/2013,472083,281.94,UNITED UTILITIES ,X00011,11,2012
Allerdale Borough Council,BD08,Premises related expenditure,Corporate Property,Water & Sewage,06/02/2013,472084,83.96,UNITED UTILITIES ,X00011,11,2012
Allerdale Borough Council,BD08,Premises related expenditure,Corporate Property,Water & Sewage,06/02/2013,472085,183.31,UNITED UTILITIES ,X00011,11,2012
Allerdale Borough Council,BD08,Premises related expenditure,Corporate Property,Water & Sewage,06/02/2013,472086,69.07,UNITED UTILITIES ,X00011,11,2012
Allerdale Borough Council,BD08,Premises related expenditure,Corporate Property,Water & Sewage,06/02/2013,472087,18.87,UNITED UTILITIES ,X00011,11,2012
Allerdale Borough Council,BD08,Premises related expenditure,Corporate Property,Water & Sewage,06/02/2013,472088,50,UNITED UTILITIES ,X00011,11,2012
Allerdale Borough Council,BD08,Premises related expenditure,Corporate Property,Water & Sewage,06/02/2013,472089,226.12,UNITED UTILITIES ,X00011,11,2012
Allerdale Borough Council,BD08,Premises related expenditure,Corporate Property,Water & Sewage,06/02/2013,472090,32.98,UNITED UTILITIES ,X00011,11,2012
Allerdale Borough Council,BD02,Premises related expenditure,Street & Footway Maintenance,Electricity,06/02/2013,472091,180.61,NPOWER           ,X00015,11,2012
Allerdale Borough Council,BD02,Premises related expenditure,Street & Footway Maintenance,Electricity,06/02/2013,472092,186.63,NPOWER           ,X00015,11,2012
Allerdale Borough Council,BD02,Premises related expenditure,Corporate Property,Electricity,06/02/2013,472093,311.91,NPOWER           ,X00015,11,2012
Allerdale Borough Council,BD02,Premises related expenditure,Corporate Property,Electricity,06/02/2013,472094,322.32,NPOWER           ,X00015,11,2012
Allerdale Borough Council,BD02,Premises related expenditure,Corporate Property,Electricity,06/02/2013,472095,80.79,NPOWER           ,X00015,11,2012
Allerdale Borough Council,BD02,Premises related expenditure,Corporate Property,Electricity,06/02/2013,472096,83.5,NPOWER           ,X00015,11,2012
Allerdale Borough Council,BD08,Premises related expenditure,Corporate Property,Water & Sewage,06/02/2013,472097,87.65,UNITED UTILITIES ,X00011,11,2012
Allerdale Borough Council,BD08,Premises related expenditure,Corporate Property,Water & Sewage,06/02/2013,472098,892.15,UNITED UTILITIES ,X00011,11,2012
Allerdale Borough Council,BD08,Premises related expenditure,Corporate Property,Water & Sewage,06/02/2013,472099,13.35,UNITED UTILITIES ,X00011,11,2012
Allerdale Borough Council,BD08,Premises related expenditure,Corporate Property,Water & Sewage,06/02/2013,472100,5.41,UNITED UTILITIES ,X00011,11,2012
Allerdale Borough Council,BD08,Premises related expenditure,Corporate Property,Water & Sewage,06/02/2013,472101,14.42,UNITED UTILITIES ,X00011,11,2012
Allerdale Borough Council,BA03,Premises related expenditure,Coastal Protection and Inland Flooding,Grounds,20/02/2013,472102,755,BLACKPOOL COUNCIL             ,A00518,11,2012
Allerdale Borough Council,DE01,Supplies and Services,Property - Tenanted Properties NOT Wigton Props,Consultants Fees,06/02/2013,472103,220,PFK PLC LAND AGENCY           ,A00954,11,2012
Allerdale Borough Council,BA03,Premises related expenditure,Coastal Protection and Inland Flooding,Grounds,20/02/2013,472104,108,Redacted information - included personal information ,C00023,11,2012
Allerdale Borough Council,DG02,Supplies and Services,Shared IT,Line Rentals,27/02/2013,472105,37.5,SITEXORBIS LIMITED            ,A00679,11,2012
Allerdale Borough Council,BC03,Premises related expenditure,Corporate Property,Cleaning - windows,06/02/2013,472106,234.85,J A LEE WINDOW & GENERAL CLEANERS,A00051,11,2012
Allerdale Borough Council,AF04,Employee related expenditure,Planning and Development ,Hire of Training Rooms/Venues,06/02/2013,472107,27.75,ST MICHAELS CHURCH WORKINGTON ,A00255,11,2012
Allerdale Borough Council,DH99,Supplies and Services,Leisure - Carnegie Theatre,Computer Costs - General,27/02/2013,472108,"2,098.00",BURNLEY BOROUGH COUNCIL       ,A01628,11,2012
Allerdale Borough Council,EA99,Third Party Payments,Parking Services - Multi-storey,General,27/02/2013,472109,"32,521.08",PARKSAFE                      ,A00647,11,2012
Allerdale Borough Council,IF09,Income,Homelessness,Dwellings,06/02/2013,472110,36.76,ALLERDALE            ,A00342,11,2012
Allerdale Borough Council,BA01,Premises related expenditure,Corporate Property,External Maintenance & Decoration,27/02/2013,472111,"1,000.00",Redacted information - included personal information ,A01732,11,2012
Allerdale Borough Council,BC08,Premises related expenditure,Homelessness,Domestic Consummables,13/02/2013,472112,120.75,STEVES PAINT LTD              ,A00119,11,2012
Allerdale Borough Council,DA03,Supplies and Services,Food and Occupational Health,Purchase of Materials,27/02/2013,472113,23.99,FOOD SAFETY DIRECT LIMITED    ,A01144,11,2012
Allerdale Borough Council,AF01,Employee related expenditure,Training,External Courses & Seminar Fees,06/02/2013,472114,50,COCKERMOUTH TOWN COUNCIL      ,A00586,11,2012
Allerdale Borough Council,CA04,Transport related expenditure,ES - Public Convenience Cleaning,Repairs & Maintenance ,06/02/2013,472115,39,GOODFELLOW & SONS             ,A00031,11,2012
Allerdale Borough Council,FA01,Transfer Payments,Economic Regeneration,Private Individuals,06/02/2013,472116,750,ACTION FOR CHILDREN           ,A01404,11,2012
Allerdale Borough Council,EA04,Third Party Payments,Recycling,Horticulture,13/02/2013,472117,413,THOMPSONS PLANT HIRE LTD      ,A00262,11,2012
Allerdale Borough Council,EA04,Third Party Payments,Recycling,Horticulture,13/02/2013,472118,197.5,THOMPSONS PLANT HIRE LTD      ,A00262,11,2012
Allerdale Borough Council,EA15,Third Party Payments,Housing - Strategic Function,Voluntary Organisations,27/02/2013,472119,460.5,PLUS DANE GROUP               ,A01395,11,2012
Allerdale Borough Council,DE01,Supplies and Services,Planning and Development ,Consultants Fees,06/03/2013,472120,"2,013.69",EDEN ENVIRONMENT LTD          ,A01632,11,2012
Allerdale Borough Council,DK99,Supplies and Services,Communications and Marketing,Promotions General,27/02/2013,472121,30,GIRAFFE DESIGN,C00115,11,2012
Allerdale Borough Council,DE02,Supplies and Services,Legal Services - Pay Groups,Land Registry Fees,04/03/2013,472122,35,HM LAND REGISTRY,A00505,11,2012
Allerdale Borough Council,DE03,Supplies and Services,Legal Services - Pay Groups,Court and Tribunal Costs,06/02/2013,472123,70,HMCTS    ,A01237,11,2012
Allerdale Borough Council,DE03,Supplies and Services,Legal Services - Pay Groups,Court and Tribunal Costs,06/02/2013,472124,140,HMCTS    ,A01237,11,2012
Allerdale Borough Council,DK99,Supplies and Services,AONB Silloth,Promotions General,06/02/2013,472125,370,Redacted information - included personal information ,M01640,11,2012
Allerdale Borough Council,DE14,Supplies and Services,Leisure - Carnegie Theatre,Public Entertaiment,06/02/2013,472126,400,Redacted information - included personal information ,A00349,11,2012
Allerdale Borough Council,ID04,Income,Bereavement Services,Cemetery Granting of Burial Rights,06/02/2013,472128,330,Redacted information - included personal information ,M01922,11,2012
Allerdale Borough Council,FA01,Transfer Payments,Cockermouth Shop Front Scheme,Private Individuals,06/02/2013,472129,"2,000.00",THE NEW BOOKSHOP       ,M01921,11,2012
Allerdale Borough Council,DM99,Supplies and Services,Homelessness,General,06/02/2013,472130,450,Redacted information - included personal information ,M01920,11,2012
Allerdale Borough Council,QF05,Capital Expenditure,Housing Act 1989 - Facilities for Disabled,To Private Individuals,06/02/2013,472131,"2,150.00",BLUE FLAME                    ,M01564,11,2012
Allerdale Borough Council,QF05,Capital Expenditure,Housing Act 1989 - Facilities for Disabled,To Private Individuals,06/02/2013,472132,"3,012.07",MAYSON BROS LTD               ,X00132,11,2012
Allerdale Borough Council,QF05,Capital Expenditure,Housing Act 1989 - Facilities for Disabled,To Private Individuals,06/02/2013,472133,"3,073.53",Redacted information - included personal information ,X00115,11,2012
Allerdale Borough Council,DM99,Supplies and Services,Homelessness,General,06/02/2013,472134,700,SMEATONS LETTING AGENT ,M01923,11,2012
Allerdale Borough Council,DM99,Supplies and Services,Homelessness,General,06/02/2013,472135,75,BR PROPERTIES                 ,M00868,11,2012
Allerdale Borough Council,ID12,Income,Planning and Development ,Planning Fees,06/02/2013,472136,172,Redacted information - included personal information ,M01925,11,2012
Allerdale Borough Council,ID12,Income,Planning and Development ,Planning Fees,06/02/2013,472137,98,HADRIAN ELECTRICAL ENG ,M01924,11,2012
Allerdale Borough Council,DM99,Supplies and Services,Homelessness,General,13/02/2013,472138,75,BR PROPERTIES                 ,M00868,11,2012
Allerdale Borough Council,DM99,Supplies and Services,Homelessness,General,13/02/2013,472139,75,BR PROPERTIES                 ,M00868,11,2012
Allerdale Borough Council,ID13,Income,Building Control,Building Control Fees,13/02/2013,472140,7.62,P COYLE  & SON         ,M01926,11,2012
Allerdale Borough Council,DE06,Supplies and Services,Legal Services - Pay Groups,Professional Services,13/02/2013,472141,34.2,BURNETTS SOLICITORS           ,A00129,11,2012
Allerdale Borough Council,DA01,Supplies and Services,Recycling,Equipment Costs,06/03/2013,472142,"2,992.00",CRAEMER UK LTD                ,A01016,11,2012
Allerdale Borough Council,EB06,Third Party Payments,Maryport Wave,The Wave,13/02/2013,472143,"15,918.00",CARLISLE LEISURE LTD          ,A00136,11,2012
Allerdale Borough Council,EB05,Third Party Payments,Leisure - Sports & Leisure Centres,Leisure Centres,13/02/2013,472144,"47,829.67",CARLISLE LEISURE LTD          ,A00136,11,2012
Allerdale Borough Council,DD01,Supplies and Services,Document Management - Pay Groups,General stationery,27/02/2013,472145,59.38,LYRECO                        ,A00043,11,2012
Allerdale Borough Council,DD01,Supplies and Services,Document Management - Pay Groups,General stationery,27/02/2013,472146,131.2,LYRECO                        ,A00043,11,2012
Allerdale Borough Council,DD01,Supplies and Services,Document Management - Pay Groups,General stationery,27/02/2013,472147,59.19,LYRECO                        ,A00043,11,2012
Allerdale Borough Council,BA01,Premises related expenditure,Corporate Property,External Maintenance & Decoration,13/02/2013,472148,"1,144.66",THOMAS ARMSTRONG - CONST      ,C00003,11,2012
Allerdale Borough Council,DE02,Supplies and Services,Legal Services - Pay Groups,Land Registry Fees,04/03/2013,472149,22,HM LAND REGISTRY-DIRECT DEBIT ,A00505,11,2012
Allerdale Borough Council,QF05,Capital Expenditure,Housing Act 1989 - Facilities for Disabled,To Private Individuals,13/02/2013,472150,"2,803.46",Redacted information - included personal information ,X00115,11,2012
Allerdale Borough Council,ID13,Income,Building Control,Building Control Fees,13/02/2013,472151,280.07,CHRYSALIS (CUMBRIA) LTD,M01927,11,2012
Allerdale Borough Council,ID24,Income,Parking Services - Onstreet,Excess Charges - Car Parks,13/02/2013,472152,35,Redacted information - included personal information ,M01928,11,2012
Allerdale Borough Council,ZI01, ,General Fund,Cash in Hand,13/02/2013,472155,100,ALLERDALE - INVOICE SECTION   ,X00034,11,2012
Allerdale Borough Council,DE99,Supplies and Services,Licensing Service,Other Fees,04/03/2013,472159,352,CRIMINAL RECORDS BUR,X00041,11,2012
Allerdale Borough Council,DD04,Supplies and Services,Building Control,Reference Materials (includes online charges),13/03/2013,472160,766.17,TSO LTD                       ,A00152,11,2012
Allerdale Borough Council,QF05,Capital Expenditure,Housing Act 1989 - Facilities for Disabled,To Private Individuals,13/02/2013,472161,"1,395.00",DOLPHIN STAIRLIFTS CUMBRIA    ,X00107,11,2012
Allerdale Borough Council,DA01,Supplies and Services,Food and Occupational Health,Equipment Costs,04/03/2013,472163,14,OSBORNE RICHARDSON            ,A00206,11,2012
Allerdale Borough Council,DA01,Supplies and Services,Leisure - Carnegie Theatre,Equipment Costs,13/02/2013,472164,78.25,CITY ELECTRICAL FACTORS LTD   ,A00395,11,2012
Allerdale Borough Council,DA01,Supplies and Services,Leisure - Carnegie Theatre,Equipment Costs,13/02/2013,472165,7.14,CITY ELECTRICAL FACTORS LTD   ,A00395,11,2012
Allerdale Borough Council,DA02,Supplies and Services,Parking Services - Pay Groups,Equipment Repair & Maintenance,13/02/2013,472166,344,CHIPSIDE LIMITED              ,A00004,11,2012
Allerdale Borough Council,BC02,Premises related expenditure,Leisure - Carnegie Theatre,Cleaning,13/02/2013,472167,53.12,CATERITE FOOD & WINE SERVICE  ,A00210,11,2012
Allerdale Borough Council,DF01,Supplies and Services,Revenue,Postage,13/02/2013,472168,911.42,ROYAL MAIL LETTERS            ,X00021,11,2012
Allerdale Borough Council,DH04,Supplies and Services,Shared IT,Computer Data Lines B.T.,20/02/2013,472169,67.9,CABLE & WIRELESS              ,A00934,11,2012
Allerdale Borough Council,DE07,Supplies and Services,Land Charges Service,Searches,13/02/2013,472170,802.5,LAKE DISTRICT NATIONAL PK AUTH,A00415,11,2012
Allerdale Borough Council,DH13,Supplies and Services,Shared IT,Software Miscellaneous ,27/02/2013,472171,522,GENIUS INTERNET SECURITY      ,A01595,11,2012
Allerdale Borough Council,AD01,Employee related expenditure,Human Resources - Pay Groups,Agency Staff Costs,27/02/2013,472172,"1,200.00",HAYS                          ,A00280,11,2012
Allerdale Borough Council,AF01,Employee related expenditure,Finance and Accounting - Pay Groups,External Courses & Seminar Fees,13/02/2013,472173,"1,462.50",HAYS                          ,A00280,11,2012
Allerdale Borough Council,AD01,Employee related expenditure,Human Resources - Pay Groups,Agency Staff Costs,13/02/2013,472174,900,HAYS                          ,A00280,11,2012
Allerdale Borough Council,AD01,Employee related expenditure,Human Resources - Pay Groups,Agency Staff Costs,20/02/2013,472175,"1,200.00",HAYS                          ,A00280,11,2012
Allerdale Borough Council,AD01,Employee related expenditure,Finance and Accounting - Pay Groups,Agency Staff Costs,20/02/2013,472176,"1,625.00",HAYS                          ,A00280,11,2012
Allerdale Borough Council,DD04,Supplies and Services,Legal Services - Pay Groups,Reference Materials (includes online charges),27/02/2013,472177,210,SWEET & MAXWELL GROUP LTD     ,A00028,11,2012
Allerdale Borough Council,DA01,Supplies and Services,Asset Management - Pay Groups,Equipment Costs,13/02/2013,472178,73.2,GREENHAM                      ,A00096,11,2012
Allerdale Borough Council,DE06,Supplies and Services,Legal Services - Pay Groups,Professional Services,13/02/2013,472179,"1,430.00",CUMBRIA CC    ,A00066,11,2012
Allerdale Borough Council,DF01,Supplies and Services,Revenue,Postage,13/02/2013,472180,580.01,ROYAL MAIL LETTERS            ,X00021,11,2012
Allerdale Borough Council,DM99,Supplies and Services,Senior Management/PA - Pay Groups,General,13/02/2013,472181,8.1,P & D NEWSAGENTS              ,A00237,11,2012
Allerdale Borough Council,DD03,Supplies and Services,Environmental Services - Pay Groups,Publications and Periodicals,13/02/2013,472182,16.9,P & D NEWSAGENTS              ,A00237,11,2012
Allerdale Borough Council,CA04,Transport related expenditure,Recycling,Repairs & Maintenance ,13/02/2013,472183,300,MARYPORT CAR CENTRE           ,A00510,11,2012
Allerdale Borough Council,EA04,Third Party Payments,ES - Parks and Grounds Maintenance,Horticulture,13/02/2013,472184,"24,596.61",SILLOTH TOWN COUNCIL          ,A00615,11,2012
Allerdale Borough Council,BD02,Premises related expenditure,Street & Footway Maintenance,Electricity,13/02/2013,472185,"2,779.42",NPOWER           ,X00015,11,2012
Allerdale Borough Council,BD02,Premises related expenditure,Street & Footway Maintenance,Electricity,13/02/2013,472186,"4,904.87",NPOWER             ,X00015,11,2012
Allerdale Borough Council,DE01,Supplies and Services,Environmental Protection,Consultants Fees,20/02/2013,472187,"1,246.14",AMEC ENVIRON&INFRASTRUCTURE UK,A01589,11,2012
Allerdale Borough Council,BD02,Premises related expenditure,Street & Footway Maintenance,Electricity,13/02/2013,472188,"5,068.35",NPOWER           ,X00015,11,2012
Allerdale Borough Council,DA01,Supplies and Services,Asset Management - Pay Groups,Equipment Costs,27/02/2013,472189,150,P&W CONFIDENTIAL BUSINESS SERV,A01498,11,2012
Allerdale Borough Council,DK99,Supplies and Services,AONB Silloth,Promotions General,27/02/2013,472190,23.3,ARCO LIMITED                  ,A00045,11,2012
Allerdale Borough Council,DK01,Supplies and Services,Planning and Development ,Statutory Notices,13/02/2013,472191,"1,324.16",CUMBRIA CC - 3C STUDIO ONLY   ,A00070,11,2012
Allerdale Borough Council,DK01,Supplies and Services,Planning and Development ,Statutory Notices,13/02/2013,472192,"2,338.28",CUMBRIA CC - 3C STUDIO ONLY   ,A00070,11,2012
Allerdale Borough Council,DK01,Supplies and Services,Planning and Development ,Statutory Notices,13/02/2013,472193,370.8,CUMBRIA CC - 3C STUDIO ONLY   ,A00070,11,2012
Allerdale Borough Council,DC03,Supplies and Services,Food and Occupational Health,Laundry,13/02/2013,472194,176.04,SUNLIGHT SERVICE GROUP        ,A00027,11,2012
Allerdale Borough Council,DE01,Supplies and Services,Food and Occupational Health,Consultants Fees,27/02/2013,472195,56,CAPITA TRANSLATION&INTE,A01749,11,2012
Allerdale Borough Council,DA01,Supplies and Services,Environmental Protection,Equipment Costs,06/03/2013,472196,124,MARTIN CRANFIELD ASSOCIATES LT,A01666,11,2012
Allerdale Borough Council,DH13,Supplies and Services,Shared IT,Software Miscellaneous ,27/02/2013,472197,"3,000.00",RISUAL LIMITED                ,A01455,11,2012
Allerdale Borough Council,DM99,Supplies and Services,Enterprise Coaches,General,27/02/2013,472198,341.5,CARTRIDGE WORLD WORKING,A01687,11,2012
Allerdale Borough Council,DH04,Supplies and Services,Shared IT,Computer Data Lines B.T.,27/02/2013,472199,176.9,CABLE & WIRELESS              ,A00934,11,2012
Allerdale Borough Council,CA01,Transport related expenditure,Homelessness,Vehicle Leasing,27/02/2013,472200,156.21,ARVAL LTD                     ,A00545,11,2012
Allerdale Borough Council,BA01,Premises related expenditure,Corporate Property,External Maintenance & Decoration,13/02/2013,472201,64,Redacted information - included personal information ,C00008,11,2012
Allerdale Borough Council,BC03,Premises related expenditure,Corporate Property,Cleaning - windows,13/02/2013,472202,7.74,J A LEE WINDOW & GENERAL CLEAN,A00051,11,2012
Allerdale Borough Council,DH10,Supplies and Services,Shared IT,Software Licences,27/02/2013,472203,"4,252.16",PHOENIX SOFTWARE LTD          ,A00229,11,2012
Allerdale Borough Council,EA04,Third Party Payments,Recycling,Horticulture,13/02/2013,472204,439.09,FCC RECYCLING (UK) LTD (ALCO) ,A00185,11,2012
Allerdale Borough Council,BB01,Premises related expenditure,Corporate Property,Internal Maintenance,13/02/2013,472205,112,DERWENT FLOORING & CEILING CO ,C00041,11,2012
Allerdale Borough Council,DA01,Supplies and Services,Asset Management - Pay Groups,Equipment Costs,27/02/2013,472206,136.56,ARCO LIMITED                  ,A00045,11,2012
Allerdale Borough Council,DH11,Supplies and Services,Shared IT,Software Maintenance,27/02/2013,472207,"5,632.00",CAPITA BUSINESS SERVICES LTD  ,A01264,11,2012
Allerdale Borough Council,BA01,Premises related expenditure,Car Parks - Inspection and Maintenance,External Maintenance & Decoration,06/03/2013,472208,"2,677.50",JOHN ELLIOTT LTD                 ,C00023,11,2012
Allerdale Borough Council,DD01,Supplies and Services, ,General stationery,06/03/2013,472209,430,XEROX OFFICE SUPPLIES         ,A00366,11,2012
Allerdale Borough Council,DE01,Supplies and Services,ES - Street Cleansing,Consultants Fees,20/02/2013,472210,50,MICHAEL DOUGLAS AUTO SALVAGE  ,A00078,11,2012
Allerdale Borough Council,DE01,Supplies and Services, ,Consultants Fees,27/02/2013,472211,"1,500.00",FMG CONSULTING LTD     ,A01721,11,2012
Allerdale Borough Council,DE01,Supplies and Services, ,Consultants Fees,27/02/2013,472212,"3,195.34",FMG CONSULTING LTD     ,A01721,11,2012
Allerdale Borough Council,DD04,Supplies and Services,Asset Management - Pay Groups,Reference Materials (includes online charges),13/02/2013,472213,108.33,GENESIS HOME APPLIANCES LTD   ,A00985,11,2012
Allerdale Borough Council,AF01,Employee related expenditure,Training,External Courses & Seminar Fees,13/02/2013,472214,320,CAMPBELLS COLLEGE             ,A01396,11,2012
Allerdale Borough Council,DE06,Supplies and Services,Human Resources - Pay Groups,Professional Services,13/02/2013,472215,150,BURNETTS SOLICITORS           ,A00129,11,2012
Allerdale Borough Council,DE01,Supplies and Services,Human Resources - Pay Groups,Consultants Fees,13/02/2013,472216,315.9,BURNETTS SOLICITORS           ,A00129,11,2012
Allerdale Borough Council,DE01,Supplies and Services,Human Resources - Pay Groups,Consultants Fees,13/02/2013,472217,245.7,BURNETTS SOLICITORS           ,A00129,11,2012
Allerdale Borough Council,DB02,Supplies and Services,Leisure - Carnegie Theatre,Bar Provision,13/02/2013,472218,11.84,SOLWAY HEATERS LTD            ,A00305,11,2012
Allerdale Borough Council,DE99,Supplies and Services,Property - Tenanted Properties NOT Wigton Props,Other Fees,13/02/2013,472219,"1,000.00",BROCKBANKS SOLICITORS  ,A01761,11,2012
Allerdale Borough Council,QF05,Capital Expenditure,Housing Act 1989 - Facilities for Disabled,To Private Individuals,13/02/2013,472224,"2,080.00",TOP NOTCH CONTRACTORS LTD     ,X00165,11,2012
Allerdale Borough Council,DH04,Supplies and Services,Shared IT,Computer Data Lines B.T.,13/02/2013,472225,434.98,CABLE & WIRELESS              ,A00934,11,2012
Allerdale Borough Council,DI03,Supplies and Services,Members Services,"Courses, Training, Seminars",20/02/2013,472226,63,MAGGIES BAKERY                ,A01685,11,2012
Allerdale Borough Council,DI03,Supplies and Services,Members Services,"Courses, Training, Seminars",13/02/2013,472227,105,CARLISLE LEISURE LTD          ,A00136,11,2012
Allerdale Borough Council,DH04,Supplies and Services,Shared IT,Computer Data Lines B.T.,13/02/2013,472228,"2,879.12",CABLE & WIRELESS              ,A00934,11,2012
Allerdale Borough Council,DH04,Supplies and Services,Shared IT,Computer Data Lines B.T.,13/02/2013,472229,111.98,CABLE & WIRELESS              ,A00934,11,2012
Allerdale Borough Council,DH04,Supplies and Services,Shared IT,Computer Data Lines B.T.,13/02/2013,472230,111.98,CABLE & WIRELESS              ,A00934,11,2012
Allerdale Borough Council,DH04,Supplies and Services,Shared IT,Computer Data Lines B.T.,13/02/2013,472231,111.98,CABLE & WIRELESS              ,A00934,11,2012
Allerdale Borough Council,DH04,Supplies and Services,Shared IT,Computer Data Lines B.T.,13/02/2013,472232,111.98,CABLE & WIRELESS              ,A00934,11,2012
Allerdale Borough Council,DH04,Supplies and Services,Shared IT,Computer Data Lines B.T.,13/02/2013,472233,111.98,CABLE & WIRELESS              ,A00934,11,2012
Allerdale Borough Council,DH04,Supplies and Services,Shared IT,Computer Data Lines B.T.,13/02/2013,472234,111.98,CABLE & WIRELESS              ,A00934,11,2012
Allerdale Borough Council,DH04,Supplies and Services,Shared IT,Computer Data Lines B.T.,13/02/2013,472235,111.98,CABLE & WIRELESS              ,A00934,11,2012
Allerdale Borough Council,DH04,Supplies and Services,Shared IT,Computer Data Lines B.T.,13/02/2013,472236,111.98,CABLE & WIRELESS              ,A00934,11,2012
Allerdale Borough Council,DH04,Supplies and Services,Shared IT,Computer Data Lines B.T.,13/02/2013,472237,111.98,CABLE & WIRELESS              ,A00934,11,2012
Allerdale Borough Council,DH04,Supplies and Services,Shared IT,Computer Data Lines B.T.,13/02/2013,472238,111.98,CABLE & WIRELESS              ,A00934,11,2012
Allerdale Borough Council,DH04,Supplies and Services,Shared IT,Computer Data Lines B.T.,13/02/2013,472239,111.98,CABLE & WIRELESS              ,A00934,11,2012
Allerdale Borough Council,DH04,Supplies and Services,Shared IT,Computer Data Lines B.T.,13/02/2013,472240,"3,043.83",CABLE & WIRELESS              ,A00934,11,2012
Allerdale Borough Council,DG04,Supplies and Services,Shared IT,Mobile Phones,13/02/2013,472241,601.8,CARLISLE CITY COUNCIL         ,A00161,11,2012
Allerdale Borough Council,DD03,Supplies and Services,Organisation Development Team Pay Group,Publications and Periodicals,13/02/2013,472242,45.6,P & D NEWSAGENTS              ,A00237,11,2012
Allerdale Borough Council,CA04,Transport related expenditure,ES - Public Convenience Cleaning,Repairs & Maintenance ,13/02/2013,472243,59,GOODFELLOW & SONS             ,A00031,11,2012
Allerdale Borough Council,DH12,Supplies and Services,IT - New Initiatives,Software Development,27/02/2013,472244,"1,400.00",CONSILIUM TECHNOLOGIES ,A01712,11,2012
Allerdale Borough Council,BA01,Premises related expenditure,Building Control,External Maintenance & Decoration,20/02/2013,472245,396,BINGHAM YATES & PARTNERS      ,A00003,11,2012
Allerdale Borough Council,BD05,Premises related expenditure,Homelessness,Rentals and Lease Charges,20/02/2013,472246,"1,134.01",HOME GROUP LTD                ,A00423,11,2012
Allerdale Borough Council,BD05,Premises related expenditure,Homelessness,Rentals and Lease Charges,27/02/2013,472247,"10,181.64",DERWENT & SOLWAY HOUSING ASSOC ,A00219,11,2012
Allerdale Borough Council,DH08,Supplies and Services,Document Management - Pay Groups,Computer Consumables,06/03/2013,472248,199.39,INSIGHT DIRECT (UK) LTD       ,A00054,11,2012
Allerdale Borough Council,DG02,Supplies and Services,Shared IT,Line Rentals,20/02/2013,472249,24.99,MANX TELECOM LTD              ,A01265,11,2012
Allerdale Borough Council,DG02,Supplies and Services,Shared IT,Line Rentals,20/02/2013,472250,13.88,MANX TELECOM LTD              ,A01265,11,2012
Allerdale Borough Council,DG03,Supplies and Services,Shared IT,Call Charges,27/02/2013,472251,117.49,CABLE & WIRELESS              ,A00934,11,2012
Allerdale Borough Council,DH05,Supplies and Services,Shared IT,Computer Network,27/02/2013,472252,859,CABLE & WIRELESS              ,A00934,11,2012
Allerdale Borough Council,DE06,Supplies and Services,Animal Welfare,Professional Services,20/02/2013,472253,"2,641.00",WHINMILL FARM CANINE CENTRE   ,A00117,11,2012
Allerdale Borough Council,DH04,Supplies and Services,Shared IT,Computer Data Lines B.T.,06/03/2013,472254,18.49,THUS PLC/DEMON                ,A00598,11,2012
Allerdale Borough Council,BA03,Premises related expenditure,ES - Parks and Grounds Maintenance,Grounds,27/02/2013,472255,59.97,ASTSIGNS LIMITED              ,A01473,11,2012
Allerdale Borough Council,BA01,Premises related expenditure,Corporate Property,External Maintenance & Decoration,20/02/2013,472256,110,UNBLOCK CUMBRIA LTD           ,C00005,11,2012
Allerdale Borough Council,DH03,Supplies and Services,Shared IT,Hardware Purchase,06/03/2013,472257,38,MISCO                         ,A00125,11,2012
Allerdale Borough Council,DH08,Supplies and Services,Document Management - Pay Groups,Computer Consumables,06/03/2013,472258,28.3,INSIGHT DIRECT (UK) LTD       ,A00054,11,2012
Allerdale Borough Council,DK99,Supplies and Services,AONB Silloth,Promotions General,27/02/2013,472259,23.3,ARCO LIMITED                  ,A00045,11,2012
Allerdale Borough Council,DK99,Supplies and Services, ,Promotions General,27/02/2013,472260,611,PAUL GROUT ASSOCIATES  ,A01743,11,2012
Allerdale Borough Council,AF01,Employee related expenditure,Training,External Courses & Seminar Fees,20/02/2013,472261,750,MIDLAND SOFTWARE LTD          ,A00296,11,2012
Allerdale Borough Council,DE01,Supplies and Services,Senior Management/PA - Pay Groups,Consultants Fees,06/03/2013,472262,"2,000.00",BADENOCH & CLARK              ,A01355,11,2012
Allerdale Borough Council,BD05,Premises related expenditure,Homelessness,Rentals and Lease Charges,20/02/2013,472263,341.28,MAGPIE SERVICE,A00261,11,2012
Allerdale Borough Council,CB01,Transport related expenditure,Members Services,Public Transport,20/02/2013,472264,108.1,GRAHAMS TRAVEL SERVICES LTD   ,A00010,11,2012
Allerdale Borough Council,DA02,Supplies and Services,AONB Silloth,Equipment Repair & Maintenance,20/02/2013,472265,21.47,ASPATRIA FARMERS LIMITED      ,A00736,11,2012
Allerdale Borough Council,AF01,Employee related expenditure,Training,External Courses & Seminar Fees,06/03/2013,472266,150,BAINES WILSON LLP             ,A01072,11,2012
Allerdale Borough Council,CA99,Transport related expenditure, ,General,27/02/2013,472267,"1,520.05",GATES TRAVEL                  ,A01525,11,2012
Allerdale Borough Council,DH13,Supplies and Services,Shared IT,Software Miscellaneous ,27/02/2013,472268,"6,540.00",MODERN MINDSET LTD            ,A01269,11,2012
Allerdale Borough Council,DE06,Supplies and Services,Property - Tenanted Properties NOT Wigton Props,Professional Services,20/02/2013,472269,"1,474.92",PEILL & CO LTD T/AS PEILL & CO,A01655,11,2012
Allerdale Borough Council,BA01,Premises related expenditure,Corporate Property,External Maintenance & Decoration,20/02/2013,472270,120,Redacted information - included personal information ,C00008,11,2012
Allerdale Borough Council,DM04,Supplies and Services,Local Strategic Partnership,Room Hire,20/02/2013,472271,20,NETHERHALL SCHOOL             ,A00279,11,2012
Allerdale Borough Council,QF05,Capital Expenditure,Housing Act 1989 - Facilities for Disabled,To Private Individuals,20/02/2013,472272,"2,450.00",BLUE FLAME                    ,M01564,11,2012
Allerdale Borough Council,QF05,Capital Expenditure,Housing Act 1989 - Facilities for Disabled,To Private Individuals,20/02/2013,472273,"4,250.00",THYSSEN KRUPP ENCASA/LIFTABLE ,X00105,11,2012
Allerdale Borough Council,DF03,Supplies and Services,Document Management - Pay Groups,Franking Machine Costs other,27/02/2013,472274,300,FP EXECUTIVE AGENCY LTD       ,A00733,11,2012
Allerdale Borough Council,BD08,Premises related expenditure,Corporate Property,Water & Sewage,20/02/2013,472275,42.67,UNITED UTILITIES,X00011,11,2012
Allerdale Borough Council,BD08,Premises related expenditure,Corporate Property,Water & Sewage,20/02/2013,472276,157.28,UNITED UTILITIES,X00011,11,2012
Allerdale Borough Council,BD08,Premises related expenditure,Corporate Property,Water & Sewage,20/02/2013,472277,32.45,UNITED UTILITIES,X00011,11,2012
Allerdale Borough Council,BD08,Premises related expenditure,Corporate Property,Water & Sewage,20/02/2013,472278,13.35,UNITED UTILITIES,X00011,11,2012
Allerdale Borough Council,BD08,Premises related expenditure,Corporate Property,Water & Sewage,20/02/2013,472279,143.38,UNITED UTILITIES,X00011,11,2012
Allerdale Borough Council,BD03,Premises related expenditure,Corporate Property,Gas,20/02/2013,472280,442.49,BRITISH GAS       ,X00006,11,2012
Allerdale Borough Council,BD08,Premises related expenditure,Corporate Property,Water & Sewage,20/02/2013,472281,13.51,UNITED UTILITIES,X00011,11,2012
Allerdale Borough Council,DF02,Supplies and Services,Electoral Registration,Business Reply Licences,20/02/2013,472282,160.43,ROYAL MAIL LETTERS            ,X00021,11,2012
Allerdale Borough Council,DE99,Supplies and Services,Recycling,Other Fees,20/02/2013,472283,"1,832.41",SCOTTS HAULAGE                ,A00266,11,2012
Allerdale Borough Council,CB03,Transport related expenditure,Members Services,Mileage Allowances - Car,20/02/2013,472284,112.4,GRAHAMS TRAVEL SERVICES LTD   ,A00010,11,2012
Allerdale Borough Council,BD02,Premises related expenditure,Corporate Property,Electricity,20/02/2013,472285,"5,002.70",NPOWER            ,X00015,11,2012
Allerdale Borough Council,BD02,Premises related expenditure,Corporate Property,Electricity,20/02/2013,472286,215.94,NPOWER             ,X00015,11,2012
Allerdale Borough Council,BD03,Premises related expenditure,Corporate Property,Gas,20/02/2013,472287,423.49,BRITISH GAS        ,X00006,11,2012
Allerdale Borough Council,BD03,Premises related expenditure,Corporate Property,Gas,20/02/2013,472288,736.74,BRITISH GAS        ,X00006,11,2012
Allerdale Borough Council,BD03,Premises related expenditure,Corporate Property,Gas,20/02/2013,472289,472.94,BRITISH GAS        ,X00006,11,2012
Allerdale Borough Council,BD03,Premises related expenditure,Corporate Property,Gas,20/02/2013,472290,493.76,BRITISH GAS        ,X00006,11,2012
Allerdale Borough Council,BD03,Premises related expenditure,Corporate Property,Gas,20/02/2013,472291,162.24,BRITISH GAS        ,X00006,11,2012
Allerdale Borough Council,BD03,Premises related expenditure,Corporate Property,Gas,20/02/2013,472292,542.65,BRITISH GAS        ,X00006,11,2012
Allerdale Borough Council,BD03,Premises related expenditure,Corporate Property,Gas,20/02/2013,472293,"1,211.48",BRITISH GAS        ,X00006,11,2012
Allerdale Borough Council,DG02,Supplies and Services,Shared IT,Line Rentals,06/03/2013,472294,94.63,OPENREACH BT                  ,A00599,11,2012
Allerdale Borough Council,DF03,Supplies and Services,Document Management - Pay Groups,Franking Machine Costs other,20/02/2013,472295,"10,000.00",FP TELESET                    ,A00428,11,2012
Allerdale Borough Council,DB02,Supplies and Services,Leisure - Carnegie Theatre,Bar Provision,20/02/2013,472296,"1,056.67",CLASSIC DRINKS                ,A00413,11,2012
Allerdale Borough Council,DE02,Supplies and Services,Legal Services - Pay Groups,Land Registry Fees,04/03/2013,472297,19,HM LAND REGISTRY,A00505,11,2012
Allerdale Borough Council,CB01,Transport related expenditure,Leisure - Carnegie Theatre,Public Transport,27/02/2013,472298,14.4,JOSIES TAXIS                  ,A00819,11,2012
Allerdale Borough Council,XC02,Holding and Control Accounts,Busy Bees Childcare Scheme,Holding Accounts General - Expenditure,20/02/2013,472299,"1,392.00",COMPUTERSHARE VOUCHER SERVICES,A00991,11,2012
Allerdale Borough Council,XC02,Holding and Control Accounts,Busy Bees Childcare Scheme,Holding Accounts General - Expenditure,20/02/2013,472300,76.56,COMPUTERSHARE VOUCHER SERVICES,A00991,11,2012
Allerdale Borough Council,DK99,Supplies and Services,Leisure - Carnegie Theatre,Promotions General,13/03/2013,472301,250,ARC                    ,A01746,11,2012
Allerdale Borough Council,DE08,Supplies and Services,Mayor's Fund,Subscriptions,20/02/2013,472302,8.1,P & D NEWSAGENTS              ,A00237,11,2012
Allerdale Borough Council,CA04,Transport related expenditure,Parking Services - Pay Groups,Repairs & Maintenance ,20/02/2013,472303,7.38,FCC ENVIRONMENT SERV (FOCSA)  ,A00085,11,2012
Allerdale Borough Council,EA04,Third Party Payments,Recycling,Horticulture,20/02/2013,472304,940.5,THOMPSONS PLANT HIRE LTD      ,A00262,11,2012
Allerdale Borough Council,DE01,Supplies and Services,Food and Occupational Health,Consultants Fees,27/02/2013,472305,235,MPM NORTH WEST LTD            ,A00113,11,2012
Allerdale Borough Council,DK99,Supplies and Services,AONB Silloth,Promotions General,20/02/2013,472306,100,INSIGHT MAGAZINE LTD          ,A01608,11,2012
Allerdale Borough Council,DE01,Supplies and Services,Senior Management/PA - Pay Groups,Consultants Fees,13/03/2013,472307,"2,000.00",BADENOCH & CLARK              ,A01355,11,2012
Allerdale Borough Council,EA04,Third Party Payments,Recycling,Horticulture,20/02/2013,472308,413,THOMPSONS PLANT HIRE LTD      ,A00262,11,2012
Allerdale Borough Council,DA01,Supplies and Services,Food and Occupational Health,Equipment Costs,13/03/2013,472309,88,KLIPSPRINGER                  ,A01199,11,2012
Allerdale Borough Council,BC03,Premises related expenditure,Corporate Property,Cleaning - windows,20/02/2013,472310,131.78,J A LEE WINDOW & GENERAL CLEAN,A00051,11,2012
Allerdale Borough Council,DE10,Supplies and Services, ,Disposal of Waste,13/03/2013,472311,90,P&W CONFIDENTIAL BUSINESS SERV,A01498,11,2012
Allerdale Borough Council,CA04,Transport related expenditure,Pest Control,Repairs & Maintenance ,20/02/2013,472312,9.4,HI-Q TYRESERVICES             ,A00313,11,2012
Allerdale Borough Council,BA03,Premises related expenditure,ES - Parks and Grounds Maintenance,Grounds,20/02/2013,472313,150,ISS WATERERS LANDSCAPE        ,C00044,11,2012
Allerdale Borough Council,DE03,Supplies and Services,Legal Services - Pay Groups,Court and Tribunal Costs,20/02/2013,472316,30,HMCTS     ,A01237,11,2012
Allerdale Borough Council,DH04,Supplies and Services,Shared IT,Computer Data Lines B.T.,20/02/2013,472317,323,CABLE & WIRELESS              ,A00934,11,2012
Allerdale Borough Council,DA02,Supplies and Services,Offstreet - Owned,Equipment Repair & Maintenance,06/03/2013,472318,236.25,METRIC GROUP LTD              ,A00568,11,2012
Allerdale Borough Council,DA01,Supplies and Services,Offstreet - Owned,Equipment Costs,27/02/2013,472319,103.99,COBALT TELEPHONE TECHNOLOGIES ,A01008,11,2012
Allerdale Borough Council,DE08,Supplies and Services,Human Resources - Pay Groups,Subscriptions,20/03/2013,472320,405,CUMBRIA CC   ,A00066,11,2012
Allerdale Borough Council,DE14,Supplies and Services,Leisure - Carnegie Theatre,Public Entertaiment,20/02/2013,472321,"1,300.00",THE STAGE&PRODUCTION HOUSE LTD,A01522,11,2012
Allerdale Borough Council,BC06,Premises related expenditure,Corporate Property,Legionella Inspections and Services,27/02/2013,472322,99.26,RENTOKIL INITIAL UK LTD       ,A00500,11,2012
Allerdale Borough Council,DM99,Supplies and Services,Local Strategic Partnership,General,27/02/2013,472326,356.33,ASTSIGNS LIMITED              ,A01473,11,2012
Allerdale Borough Council,DA03,Supplies and Services,Food and Occupational Health,Purchase of Materials,06/03/2013,472327,10.45,FOOD SAFETY DIRECT LIMITED    ,A01144,11,2012
Allerdale Borough Council,DK99,Supplies and Services, ,Promotions General,06/03/2013,472328,"1,633.00",ROYAL SOC PROTECTION OF,A01752,11,2012
Allerdale Borough Council,DE01,Supplies and Services,Food and Occupational Health,Consultants Fees,27/02/2013,472329,143.8,HEALTH PROTECTION AGENCY      ,A01082,11,2012
Allerdale Borough Council,EA04,Third Party Payments,Bereavement Services,Horticulture,20/02/2013,472330,"10,972.34",ISS WATERERS LANDSCAPE        ,C00044,11,2012
Allerdale Borough Council,EB02,Third Party Payments,ES - Street Cleansing,Street Cleansing,20/02/2013,472331,"93,701.83",FCC ENVIRONMENT SERV (FOCSA)  ,A00085,11,2012
Allerdale Borough Council,DD05,Supplies and Services,Revenue,Use of External Printers,20/02/2013,472332,"2,002.00",GROSVENOR HOUSE PAPERS        ,A00034,11,2012
Allerdale Borough Council,DI03,Supplies and Services,Members Services,"Courses, Training, Seminars",20/02/2013,472333,90.65,CUMB RURAL ENTERPRISE AGENCY  ,A01640,11,2012
Allerdale Borough Council,CA01,Transport related expenditure,Shared IT Paygroup,Vehicle Leasing,28/03/2013,472334,189,ARNOLD CLARK,103954,11,2012
Allerdale Borough Council,BD08,Premises related expenditure,Corporate Property,Water & Sewage,20/02/2013,472335,12.89,UNITED UTILITIES,X00011,11,2012
Allerdale Borough Council,BD08,Premises related expenditure,Corporate Property,Water & Sewage,20/02/2013,472336,87.44,UNITED UTILITIES,X00011,11,2012
Allerdale Borough Council,BD08,Premises related expenditure,Corporate Property,Water & Sewage,20/02/2013,472337,45.57,UNITED UTILITIES,X00011,11,2012
Allerdale Borough Council,BD08,Premises related expenditure,Corporate Property,Water & Sewage,20/02/2013,472338,"2,589.41",UNITED UTILITIES,X00011,11,2012
Allerdale Borough Council,BD08,Premises related expenditure,Corporate Property,Water & Sewage,20/02/2013,472339,"1,013.36",UNITED UTILITIES,X00011,11,2012
Allerdale Borough Council,BD08,Premises related expenditure,Corporate Property,Water & Sewage,20/02/2013,472340,72.46,UNITED UTILITIES,X00011,11,2012
Allerdale Borough Council,AF01,Employee related expenditure,Training,External Courses & Seminar Fees,27/02/2013,472341,100,AL'S KITCHEN                  ,A00187,11,2012
Allerdale Borough Council,BD02,Premises related expenditure,Corporate Property,Electricity,20/02/2013,472342,22.74,EON  BACS      ,X00016,11,2012
Allerdale Borough Council,BD02,Premises related expenditure,Corporate Property,Electricity,20/02/2013,472343,323.21,NPOWER             ,X00015,11,2012
Allerdale Borough Council,BD02,Premises related expenditure,Street & Footway Maintenance,Electricity,20/02/2013,472344,"5,082.24",NPOWER             ,X00015,11,2012
Allerdale Borough Council,BD02,Premises related expenditure,Street & Footway Maintenance,Electricity,20/02/2013,472345,187.14,NPOWER             ,X00015,11,2012
Allerdale Borough Council,BD02,Premises related expenditure,Corporate Property,Electricity,20/02/2013,472346,83.73,NPOWER             ,X00015,11,2012
Allerdale Borough Council,AD01,Employee related expenditure,ES - Public Convenience Cleaning,Agency Staff Costs,20/02/2013,472347,159.12,COCKERMOUTH TOWN COUNCIL      ,A00586,11,2012
Allerdale Borough Council,DE99,Supplies and Services,Out of Hours Telephones,Other Fees,27/02/2013,472348,458,SITEXORBIS LIMITED            ,A00679,11,2012
Allerdale Borough Council,DE99,Supplies and Services,Out of Hours Telephones,Other Fees,27/02/2013,472349,15.8,SITEXORBIS LIMITED            ,A00679,11,2012
Allerdale Borough Council,DE99,Supplies and Services,Leisure - Carnegie Theatre,Other Fees,27/02/2013,472350,6.56,TICKETS.COM LTD               ,A00371,11,2012
Allerdale Borough Council,BD02,Premises related expenditure,Homelessness,Electricity,20/02/2013,472351,53,MEPOS LIMITED                 ,A01286,11,2012
Allerdale Borough Council,DE01,Supplies and Services,Shared Revs & Bens,Consultants Fees,20/02/2013,472352,375,CARLISLE CITY COUNCIL         ,A00161,11,2012
Allerdale Borough Council,AF01,Employee related expenditure,Training,External Courses & Seminar Fees,20/03/2013,472353,190,RTPI                          ,A00577,11,2012
Allerdale Borough Council,DE99,Supplies and Services,Leisure - Carnegie Theatre,Other Fees,06/03/2013,472354,8.2,TICKETS.COM LTD               ,A00371,11,2012
Allerdale Borough Council,ID13,Income,Building Control,Building Control Fees,20/02/2013,472355,52.57,Redacted information - included personal information ,M01936,11,2012
Allerdale Borough Council,ID12,Income,Planning and Development ,Planning Fees,20/02/2013,472356,172,Redacted information - included personal information ,M01935,11,2012
Allerdale Borough Council,BC08,Premises related expenditure,Homelessness,Domestic Consummables,20/02/2013,472357,40.39,ALLERDALE - INVOICE SECTION   ,X00034,11,2012
Allerdale Borough Council,QF05,Capital Expenditure,Housing Act 1989 - Facilities for Disabled,To Private Individuals,20/02/2013,472358,"5,329.28",K BAILIFF & SON LIMITED       ,X00116,11,2012
Allerdale Borough Council,QF05,Capital Expenditure,Housing Act 1989 - Facilities for Disabled,To Private Individuals,20/02/2013,472359,"3,130.00",PRISM MEDICAL UK              ,X00195,11,2012
Allerdale Borough Council,QF05,Capital Expenditure,Housing Act 1989 - Facilities for Disabled,To Private Individuals,20/02/2013,472360,"2,470.00",BLUE FLAME                    ,M01564,11,2012
Allerdale Borough Council,XB01,Holding and Control Accounts,Derwent and Solway,Control Accounts General,04/03/2013,472361,"6,214.65",DERWENT & SOLWAY HOUSING ASSO ,A00219,11,2012
Allerdale Borough Council,XB01,Holding and Control Accounts,Derwent and Solway,Control Accounts General,04/03/2013,472362,"7,052.50",DERWENT & SOLWAY HOUSING ASSO ,A00219,11,2012
Allerdale Borough Council,XB01,Holding and Control Accounts,Derwent and Solway,Control Accounts General,04/03/2013,472363,"3,742.87",DERWENT & SOLWAY HOUSING ASSO ,A00219,11,2012
Allerdale Borough Council,XB01,Holding and Control Accounts,Derwent and Solway,Control Accounts General,04/03/2013,472364,"4,639.29",DERWENT & SOLWAY HOUSING ASSO ,A00219,11,2012
Allerdale Borough Council,DE05,Supplies and Services,Legal Services - Pay Groups,Licences,04/03/2013,472365,436,HSBC CARD SERVICES            ,X00000,11,2012
Allerdale Borough Council,DM99,Supplies and Services,Senior Management/PA - Pay Groups,General,26/03/2013,472366,49.42,HSBC CARD SERVICES            ,X00000,11,2012
Allerdale Borough Council,DD02,Supplies and Services,Customer Contact Centre - Pay Groups,Photocopier Charges,27/02/2013,472367,10.25,KONICA MINOLTA BUSI SOLU UK LT,A01556,11,2012
Allerdale Borough Council,BC05,Premises related expenditure,Corporate Property,Inspections and Services,27/02/2013,472368,15,PHS GROUP LTD                 ,C00028,11,2012
Allerdale Borough Council,BC05,Premises related expenditure,Corporate Property,Inspections and Services,27/02/2013,472369,45,PHS GROUP LTD                 ,C00028,11,2012
Allerdale Borough Council,BC05,Premises related expenditure,Corporate Property,Inspections and Services,27/02/2013,472370,30,PHS GROUP LTD                 ,C00028,11,2012
Allerdale Borough Council,BC05,Premises related expenditure,Corporate Property,Inspections and Services,27/02/2013,472371,165,PHS GROUP LTD                 ,C00028,11,2012
Allerdale Borough Council,BD02,Premises related expenditure,Corporate Property,Electricity,27/02/2013,472372,4.72,NPOWER            ,X00015,11,2012
Allerdale Borough Council,BD02,Premises related expenditure,Corporate Property,Electricity,27/02/2013,472373,655.01,NPOWER            ,X00015,11,2012
Allerdale Borough Council,BD02,Premises related expenditure,Corporate Property,Electricity,27/02/2013,472374,144.86,NPOWER            ,X00015,11,2012
Allerdale Borough Council,BD02,Premises related expenditure,Corporate Property,Electricity,27/02/2013,472375,4.72,NPOWER            ,X00015,11,2012
Allerdale Borough Council,BD02,Premises related expenditure,Corporate Property,Electricity,27/02/2013,472376,11.36,NPOWER            ,X00015,11,2012
Allerdale Borough Council,BD02,Premises related expenditure,Corporate Property,Electricity,27/02/2013,472377,525.45,NPOWER            ,X00015,11,2012
Allerdale Borough Council,BD02,Premises related expenditure,Corporate Property,Electricity,27/02/2013,472378,314.07,NPOWER            ,X00015,11,2012
Allerdale Borough Council,BD02,Premises related expenditure,Corporate Property,Electricity,27/02/2013,472379,36.08,NPOWER            ,X00015,11,2012
Allerdale Borough Council,BD02,Premises related expenditure,Corporate Property,Electricity,27/02/2013,472380,72.56,NPOWER            ,X00015,11,2012
Allerdale Borough Council,BD02,Premises related expenditure,Corporate Property,Electricity,27/02/2013,472381,18.24,NPOWER            ,X00015,11,2012
Allerdale Borough Council,BD02,Premises related expenditure,Corporate Property,Electricity,27/02/2013,472382,176.55,NPOWER            ,X00015,11,2012
Allerdale Borough Council,BD02,Premises related expenditure,Corporate Property,Electricity,27/02/2013,472383,86.35,NPOWER            ,X00015,11,2012
Allerdale Borough Council,BD02,Premises related expenditure,Corporate Property,Electricity,27/02/2013,472384,92.05,NPOWER            ,X00015,11,2012
Allerdale Borough Council,BD02,Premises related expenditure,Corporate Property,Electricity,27/02/2013,472385,22.79,NPOWER            ,X00015,11,2012
Allerdale Borough Council,BD02,Premises related expenditure,Corporate Property,Electricity,27/02/2013,472386,17.03,NPOWER            ,X00015,11,2012
Allerdale Borough Council,BD02,Premises related expenditure,Corporate Property,Electricity,27/02/2013,472387,819.88,NPOWER            ,X00015,11,2012
Allerdale Borough Council,BD02,Premises related expenditure,Corporate Property,Electricity,27/02/2013,472388,204.66,NPOWER            ,X00015,11,2012
Allerdale Borough Council,BD02,Premises related expenditure,Corporate Property,Electricity,27/02/2013,472389,1.93,NPOWER            ,X00015,11,2012
Allerdale Borough Council,BD02,Premises related expenditure,Corporate Property,Electricity,27/02/2013,472390,963.47,NPOWER            ,X00015,11,2012
Allerdale Borough Council,BD02,Premises related expenditure,Corporate Property,Electricity,27/02/2013,472391,"1,644.93",NPOWER            ,X00015,11,2012
Allerdale Borough Council,BD02,Premises related expenditure,Corporate Property,Electricity,27/02/2013,472392,68.88,NPOWER            ,X00015,11,2012
Allerdale Borough Council,BD02,Premises related expenditure,Corporate Property,Electricity,27/02/2013,472395,51.56,NPOWER            ,X00015,11,2012
Allerdale Borough Council,BD02,Premises related expenditure,Corporate Property,Electricity,27/02/2013,472396,"1,425.98",NPOWER            ,X00015,11,2012
Allerdale Borough Council,CA04,Transport related expenditure,Domestic Waste,Repairs & Maintenance ,27/02/2013,472397,84.44,HI-Q TYRESERVICES             ,A00313,11,2012
Allerdale Borough Council,CA04,Transport related expenditure,Domestic Waste,Repairs & Maintenance ,27/02/2013,472398,84.44,HI-Q TYRESERVICES             ,A00313,11,2012
Allerdale Borough Council,DK99,Supplies and Services,AONB Silloth,Promotions General,27/02/2013,472399,60,DRYDEN WARD                   ,A00672,11,2012
Allerdale Borough Council,AE02,Employee related expenditure,Corporate Recruitment,Interview expenses,27/02/2013,472400,89.75,KATIES KITCHEN         ,A01764,11,2012
Allerdale Borough Council,DH08,Supplies and Services, ,Computer Consumables,27/02/2013,472401,162.35,INSIGHT DIRECT (UK) LTD       ,A00054,11,2012
Allerdale Borough Council,AF01,Employee related expenditure,Training,External Courses & Seminar Fees,27/02/2013,472402,399,ZURICH MUNICIPAL              ,A00429,11,2012
Allerdale Borough Council,AF01,Employee related expenditure,Training,External Courses & Seminar Fees,27/02/2013,472403,399,ZURICH MUNICIPAL              ,A00429,11,2012
Allerdale Borough Council,DA01,Supplies and Services,Trade Waste,Equipment Costs,13/03/2013,472404,272.07,EGBERT H TAYLOR & COMPA,A01706,11,2012
Allerdale Borough Council,BA01,Premises related expenditure,Corporate Property,External Maintenance & Decoration,27/02/2013,472405,88,Redacted information - included personal information ,C00008,11,2012
Allerdale Borough Council,DE05,Supplies and Services,Planning and Development ,Licences,27/02/2013,472406,83.13,CENTREMAPS                    ,A00512,11,2012
Allerdale Borough Council,DE01,Supplies and Services,Corporate Improvement,Consultants Fees,27/02/2013,472407,12.15,LANGUAGE LINE SERVICES        ,A00018,11,2012
Allerdale Borough Council,DE05,Supplies and Services,Leisure - Carnegie Theatre,Licences,06/03/2013,472408,"1,176.07",PERFORMING RIGHTS SOCIETY LTD ,A00400,11,2012
Allerdale Borough Council,DM99,Supplies and Services,Corporate Improvement,General,27/02/2013,472409,86.14,K&R BADGES LIMITED            ,A01328,11,2012
Allerdale Borough Council,DA01,Supplies and Services,ES - Street Cleansing,Equipment Costs,20/03/2013,472410,"1,220.00",HARRISONS PACKAGING           ,A00417,11,2012
Allerdale Borough Council,AB02,Employee related expenditure,Corporate Recruitment,Medical Screening,13/03/2013,472411,424.36,WELLWORK LTD                  ,A00029,11,2012
Allerdale Borough Council,BD05,Premises related expenditure,Enterprise Coaches,Rentals and Lease Charges,27/02/2013,472412,"1,166.66",IMPACT HOUSING ASSOCIATION LTD,A00236,11,2012
Allerdale Borough Council,DE13,Supplies and Services,Leisure - Carnegie Theatre,Subcontractors - General,27/02/2013,472413,90.75,R W AUDIO                     ,C00059,11,2012
Allerdale Borough Council,DE13,Supplies and Services,Leisure - Carnegie Theatre,Subcontractors - General,27/02/2013,472414,110.55,R W AUDIO                     ,C00059,11,2012
Allerdale Borough Council,DK99,Supplies and Services,AONB Silloth,Promotions General,13/03/2013,472415,265,Redacted information - included personal information ,A01564,11,2012
Allerdale Borough Council,AF01,Employee related expenditure,Organisational Improvement Plan,External Courses & Seminar Fees,13/03/2013,472416,"3,100.00",LEACH CONSULTING & ASSOCIATES ,A01444,11,2012
Allerdale Borough Council,BB02,Premises related expenditure,Corporate Property,Electrical Repairs and Service,27/02/2013,472417,252.5,J & J ELECTRICAL (CUMBRIA) LTD,C00038,11,2012
Allerdale Borough Council,BA03,Premises related expenditure,Coastal Protection and Inland Flooding,Grounds,20/03/2013,472418,585.8,JOHN ELLIOTT LTD                 ,C00023,11,2012
Allerdale Borough Council,DH08,Supplies and Services,Shared IT,Computer Consumables,13/03/2013,472419,"1,053.95",COOLSPIRIT LTD                ,A01085,11,2012
Allerdale Borough Council,DE01,Supplies and Services,Domestic Waste,Consultants Fees,06/03/2013,472420,15.75,DUNDAS CHEMICAL CO (MOSSPARK) ,A00175,11,2012
Allerdale Borough Council,EA99,Third Party Payments,Street & Footway Maintenance,General,13/03/2013,472421,"4,011.46",DW WINDSOR LTD         ,A01731,11,2012
Allerdale Borough Council,DH08,Supplies and Services,Shared IT,Computer Consumables,13/03/2013,472422,"2,389.95",COOLSPIRIT LTD                ,A01085,11,2012
Allerdale Borough Council,DH04,Supplies and Services,Shared IT,Computer Data Lines B.T.,27/02/2013,472423,111.98,CABLE & WIRELESS              ,A00934,11,2012
Allerdale Borough Council,BD05,Premises related expenditure,Offstreet - Owned,Rentals and Lease Charges,27/02/2013,472424,"4,000.00",KESWICK RUGBY FOOTBALL CLUB LT,X00117,11,2012
Allerdale Borough Council,BD03,Premises related expenditure,Homelessness,Gas,27/02/2013,472425,85.39,SCOTTISH POWER         ,X00208,11,2012
Allerdale Borough Council,DH10,Supplies and Services,Shared IT,Software Licences,06/03/2013,472426,"6,149.00",TECHNIFORCE LIMITED           ,A01418,11,2012
Allerdale Borough Council,DI03,Supplies and Services,Members Services,"Courses, Training, Seminars",27/02/2013,472427,65.9,CUMB RURAL ENTERPRISE AGENCY  ,A01640,11,2012
Allerdale Borough Council,BD08,Premises related expenditure,Corporate Property,Water & Sewage,27/02/2013,472428,136.63,UNITED UTILITIES,X00011,11,2012
Allerdale Borough Council,DF01,Supplies and Services,Environmental Services - Pay Groups,Postage,27/02/2013,472429,200,ROYAL MAIL LETTERS            ,X00021,11,2012
Allerdale Borough Council,DG01,Supplies and Services,Environmental Services - Pay Groups,Installation Costs,27/02/2013,472430,23.07,VODAFONE CORPORATE  ,A00198,11,2012
Allerdale Borough Council,EA04,Third Party Payments,Recycling,Horticulture,27/02/2013,472431,"1,013.50",THOMPSONS PLANT HIRE LTD      ,A00262,11,2012
Allerdale Borough Council,EA04,Third Party Payments,Recycling,Horticulture,27/02/2013,472432,51,THOMPSONS PLANT HIRE LTD      ,A00262,11,2012
Allerdale Borough Council,DA01,Supplies and Services,Corporate Property,Equipment Costs,13/03/2013,472433,736.6,MAIN STREET SIGNS LIMITED     ,A00292,11,2012
Allerdale Borough Council,EA04,Third Party Payments,Recycling,Horticulture,27/02/2013,472434,527.63,FCC RECYCLING (UK) LTD (ALCO) ,A00185,11,2012
Allerdale Borough Council,AD01,Employee related expenditure,Finance and Accounting - Pay Groups,Agency Staff Costs,20/03/2013,472435,"1,462.50",HAYS                          ,A00280,11,2012
Allerdale Borough Council,AD01,Employee related expenditure,Human Resources - Pay Groups,Agency Staff Costs,20/03/2013,472436,"1,500.00",HAYS                          ,A00280,11,2012
Allerdale Borough Council,XC02,Holding and Control Accounts,Allerdale House Tea Fund,Holding Accounts General - Expenditure,20/03/2013,472437,80.4,TELK LTD                      ,A01670,11,2012
Allerdale Borough Council,DE07,Supplies and Services,Land Charges Service,Searches,13/03/2013,472438,"2,286.60",CUMBRIA COUNTY COUNCIL        ,A00920,11,2012
Allerdale Borough Council,BC03,Premises related expenditure,Corporate Property,Cleaning - windows,27/02/2013,472439,234.85,J A LEE WINDOW & GENERAL CLEAN,A00051,11,2012
Allerdale Borough Council,DH08,Supplies and Services, ,Computer Consumables,20/03/2013,472440,268.85,INSIGHT DIRECT (UK) LTD       ,A00054,11,2012
Allerdale Borough Council,BC01,Premises related expenditure,Leisure - Carnegie Theatre,Security,27/02/2013,472441,90,CUMBRIAN SYSTEMS              ,C00062,11,2012
Allerdale Borough Council,BA03,Premises related expenditure,ES - Parks and Grounds Maintenance,Grounds,20/03/2013,472442,471.25,ISS WATERERS LANDSCAPE        ,C00044,11,2012
Allerdale Borough Council,DE07,Supplies and Services,Land Charges Service,Searches,13/03/2013,472443,"1,327.70",CUMBRIA COUNTY COUNCIL        ,A00920,11,2012
Allerdale Borough Council,DA03,Supplies and Services,Animal Welfare,Purchase of Materials,20/03/2013,472444,"2,000.00",HARRISONS PACKAGING           ,A00417,11,2012
Allerdale Borough Council,BD08,Premises related expenditure,Corporate Property,Water & Sewage,27/02/2013,472445,32.85,UNITED UTILITIES,X00011,11,2012
Allerdale Borough Council,EA04,Third Party Payments,Recycling,Horticulture,27/02/2013,472446,415.53,FCC RECYCLING (UK) LTD (ALCO) ,A00185,11,2012
Allerdale Borough Council,XF03,Holding and Control Accounts,Payroll Suspense Account,PAYROLL February 13 Travel & Subsistence  ,,462862,"10,130.52",INLAND REVENUE - DIRECT,X00038,11,2012
